Cogmind - Beta 15 @@@ ROGUE MODE // 2025.09.27 @ 21:35:37 Player: kiul Result: Destroyed by Y-45 Defender with Heavy Assault Rifle Performance ------------- Evolutions (1) 500 Regions Visited (2) 400 Robots Destroyed (54) 270 Value Destroyed (1013) 1013 Prototype IDs (3) 60 Alien Tech Used (0) 0 Bonus (0) 0 TOTAL SCORE: 2243 Bonus ------- None Cogmind --------- Core Integrity 0/400 Matter 300/300 Energy 100/100 System Corruption 4% Temperature Cool (0) Movement Core (150) Ox2 Location -9/Materials Parts ------- > --- POWER (1) -------- (None) > --- PROPULSION (3) --- (None) > --- UTILITY (3) ------ Small Storage Unit Targeting Computer > --- WEAPON (2) ------- Katana > --- INVENTORY (8) ---- Small Matter Pod (50) Advanced Visual Processing Unit Improved Signal Interpreter Melee Analysis Suite Hacking Suite Hacking Suite EM Pulse Gun Datajack Peak State ------------ > --- POWER ------------ Light Ion Engine > --- PROPULSION ------- Improved Hover Unit > --- UTILITY ---------- Small Storage Unit Targeting Computer Hacking Suite > --- WEAPON ----------- Light Assault Rifle Autogun > --- INVENTORY -------- Ion Engine Small Matter Pod Signal Interpreter Signal Interpreter EM Pulse Gun Autogun Rocket Launcher Datajack [Rating: 12] Favorites ----------- Power Light Ion Engine Engine Light Ion Engine Propulsion Aluminum Leg Treads Light Treads Leg Aluminum Leg Hover Unit Improved Hover Unit Utility Small Storage Unit Storage Small Storage Unit Processor Targeting Computer Hackware Hacking Suite Protection Light Armor Plating Weapon Autogun Energy Gun Improved Medium Laser Ballistic Gun Autogun Launcher Rocket Launcher Slashing Weapon Katana Build | -11 -10 -9 ------- Run | Yrd Mat Mat Slots Evolved 2 | . . 2 Power . | . . . Propulsion 1 | . . 1 Utility 1 | . . 1 Weapon . | . . . Parts Attached 29 | 8 3 18 Power 5 | 1 . 4 Engine 5 | 1 . 4 Core . | . . . Reactor . | . . . Propulsion 9 | 4 2 3 Treads 3 | 2 . 1 Leg 2 | 2 . . Wheel . | . . . Hover 4 | . 2 2 Flight . | . . . Utility 4 | 1 1 2 Device . | . . . Storage 1 | 1 . . Processor 1 | . 1 . Hackware 1 | . . 1 Protection 1 | . . 1 Artifact . | . . . Weapon 11 | 2 . 9 Energy Gun 1 | . . 1 Energy Cannon . | . . . Ballistic Gun 8 | 2 . 6 Ballistic Cannon . | . . . Launcher 1 | . . 1 Special Weapon . | . . . Impact Weapon . | . . . Slashing Weapon 1 | . . 1 Piercing Weapon . | . . . Special Melee Weapon . | . . . Unidentified Prototypes 3 | . . 3 Parts Lost 15 | . . 15 Power 3 | . . 3 Propulsion 5 | . . 5 Utility 2 | . . 2 Weapon 5 | . . 5 Highest Loss Streak 4 | . . 4 To Critical Strikes 1 | . . 1 Average Backups 5 | . 3 6 Power . | . 1 . Propulsion . | . . . Utility 2 | . . 3 Weapon 1 | . 1 1 Tool/Special . | . . . Unused Backups 11 | . . 11 Power 1 | . . 1 Propulsion . | . . . Utility 8 | . . 8 Weapon 1 | . . 1 Tool/Special 1 | . . 1 Average Slot Usage (%) 73 | . 98 68 Engine 7 | . 14 6 Treads 4 | . . 5 Leg 5 | . 27 . Hover 2 | . . 3 Storage 11 | . 14 11 Processor 11 | . 13 11 Hackware 4 | . . 5 Protection 4 | . . 5 Ballistic Gun 18 | . 28 16 Slashing Weapon 3 | . . 3 Peak Build Rating 12 | 6 8 12 Average Rating 8 | 4 6 9 On Entrance 4 | . 6 7 Naked Turns . | . . . Heaviest Build 16 | 12 12 16 Greatest Support 40 | 40 20 20 Greatest Overweight (x) 4 | . . 4 Average Overweight (x) . | . . . Largest Inventory Capacity 8 | 8 8 8 Average Capacity 7 | 7 8 8 Most Carried 8 | 2 8 8 Average Carried 5 | . 3 6 Final Capacity 8 | 8 8 8 Final Carried 8 | 2 6 8 Class Distribution -------------------- 74% | Mutant 25% | Scavenger-Mutant Dominant Class ---------------- Mutant | -10/Materials Mutant | -9/Materials Resources | -11 -10 -9 ----------- Run | Yrd Mat Mat Matter Collected 1345 | 247 273 825 Remotely . | . . . Salvage Created 1790 | . 332 1458 Parts 125 | . 24 101 Haulers Intercepted 3 | . 1 2 Recyclers Shooed 2 | . . 2 Parts Field Recycled . | . . . Retrieved Matter . | . . . Parts Self-Destructed . | . . . Prevented . | . . . Kills | -11 -10 -9 ------- Run | Yrd Mat Mat Combat Hostiles Destroyed 34 | . 9 25 Melee 4 | . . 4 Guns 30 | . 9 21 Classes Destroyed 11 | . 6 5 Worker 7 | . 1 6 Builder 3 | . . 3 Hauler 3 | . 1 2 Recycler 3 | . . 3 Operator 2 | . 1 1 Watcher 2 | . 1 1 Swarmer 13 | . 6 7 Grunt 15 | . 3 12 Brawler 1 | . . 1 Duelist 1 | . . 1 Sentry 4 | . . 4 Best Kill Streak 6 | . 5 6 Combat Bots Only 6 | . 3 6 Max Kills in Single Turn 2 | . 2 2 Gunslinging 1 | . 1 1 Exploded . | . . . Melee 1 | . . 1 Uniques/NPCs Destroyed . | . . . Combat | -11 -10 -9 -------- Run | Yrd Mat Mat Hostile Shots Fired 251 | . 42 209 Missed 81 | . 11 70 Hits 170 | . 31 139 Melee 7 | . . 7 Projectile 163 | . 31 132 Critical Strikes 6 | . . 6 Damage Taken 1802 | . 275 1527 Core 464 | . 57 407 Absorbed by Shields . | . . . Core Remaining (%) 88 | 100 77 . Volleys Fired 156 | . 31 125 Largest 2 | . 2 2 Hottest 53 | . 40 53 Shots Fired 248 | . 62 186 Gun 246 | . 62 184 Cannon . | . . . Launcher 2 | . . 2 Special . | . . . Kinetic 246 | . 62 184 Thermal . | . . . Explosive 2 | . . 2 Electromagnetic . | . . . Robot Hit Streak 12 | . 12 10 Robot Miss Streak 8 | . 8 4 Penetration Max . | . . . Secondary Targets 6 | . 5 1 Max Gunslinging Chain 1 | . 1 1 Shots Hit Robots 175 | . 38 137 Core Hits 75 | 2 18 55 Critical Kills 1 | . 1 . Critical Parts Destroyed . | . . . Critical Strikes 2 | . 1 1 Destroy 1 | . 1 . Sever 1 | . . 1 Melee Attacks 18 | . . 18 Impact . | . . . Slashing 18 | . . 18 Piercing . | . . . Sneak Attacks 4 | . . 4 Combat Hostiles . | . . . Follow-up Attacks . | . . . Damage Inflicted 3049 | 6 509 2534 Guns 2222 | . 502 1720 Cannons . | . . . Explosions 194 | . . 194 Melee 619 | . . 619 Ramming 14 | 6 7 1 Kinetic 2222 | . 502 1720 Thermal . | . . . Explosive 194 | . . 194 Electromagnetic . | . . . Impact . | . . . Slashing 619 | . . 619 Piercing . | . . . Highest Corruption 4 | . . 4 Average Corruption 4 | . . 4 Corruption Purged . | . . . Corruption Blocked . | . . . Effects 13 | . . 13 Message Errors 6 | . . 6 Matter Fused 2 | . . 2 Heat Flow Errors 1 | . . 1 Energy Discharges 3 | . . 3 Data Loss (minor) 1 | . . 1 Overload Shots . | . . . Overflow Damage 89 | . . 89 Projectiles . | . . . Explosions . | . . . Melee 89 | . . 89 Knockbacks 2 | 1 1 . Impact 2 | 1 1 . Kinetic . | . . . Secondary . | . . . Self-Inflicted Damage . | . . . Shots . | . . . Rammed 1 | . . 1 Targets Rammed 4 | 2 1 1 Kicked 3 | 2 1 . Crushed . | . . . Highest Temperature 176 | . . 176 Average Temperature 17 | . . 17 Received Heat Transfer 477 | . 60 417 Siege Activations . | . . . Martial Activations . | . . . Shielding Activations . | . . . Robots Disrupted . | . . . Combat Hostiles . | . . . Robots Corrupted . | . . . Combat Hostiles . | . . . Parts Fried . | . . . Impact Corruptions . | . . . Robots Melted . | . . . Combat Hostiles . | . . . Parts Melted . | . . . Heat Transferred . | . . . Parts Sabotaged . | . . . Parts Stolen . | . . . Parts Stripped . | . . . Power Chain Reactions . | . . . Alert | -11 -10 -9 ------- Run | Yrd Mat Mat Maximum Alert Level 1 | . . 1 Low Security (%) 66 | 100 100 56 Level 1 33 | . . 43 Level 2 . | . . . Level 3 . | . . . Level 4 . | . . . Level 5 . | . . . High Security . | . . . Max Security . | . . . Peak Influence 277 | . 146 277 Initial 52 | . . 52 Average 137 | . 66 164 Influence Increases 1093 | . 256 837 Destroy 0b10 Robot/C 680 | . 180 500 Destroy 0b10 Robot/NC 100 | . 20 80 Destroy Leader 150 | . 44 106 Successful Hack 12 | . 12 . Destroy Structure 16 | . . 16 Partial Spotted 15 | . . 15 Lose Combat Pursuer 120 | . . 120 Influence Decreases 836 | . 130 706 Entered New Map 74 | . . 74 Time Decay 612 | . 130 482 Lost Part 150 | . . 150 Squads Dispatched 5 | . 2 3 Investigation 1 | . . 1 Extermination . | . . . Reinforcement 4 | . 2 2 Assault . | . . . Garrison . | . . . Intercept . | . . . Searches Triggered . | . . . Construction Impeded . | . . . Haulers Reinforced . | . . . Active Scanning Responses . | . . . Cargo Convoy Interrupts . | . . . Stealth | -11 -10 -9 --------- Run | Yrd Mat Mat Distress Signals 3 | . 1 2 Communications Jammed . | . . . Distress Signals . | . . . Times Spotted 58 | . 13 45 Peak Tracking Total 6 | . 4 6 Tactical Retreats 7 | . . 7 Traps | -11 -10 -9 ------- Run | Yrd Mat Mat Traps Triggered 1 | . . 1 Indirectly . | . . . Trap Hack Attempts . | . . . Triggered . | . . . Disarmed . | . . . Reprogrammed . | . . . Reused . | . . . Traps Extracted . | . . . Installed . | . . . Triggered . | . . . Machines | -11 -10 -9 ---------- Run | Yrd Mat Mat Machines Disabled . | . . . Max in Single Turn . | . . . Machines Repaired . | . . . Machines Dismantled . | . . . Machines Sabotaged . | . . . Overloaded Fab Kills . | . . . Hacking | -11 -10 -9 --------- Run | Yrd Mat Mat Machines Accessed 2 | . 2 . Terminals 2 | . 2 . Fabricators . | . . . Repair Stations . | . . . Recycling Units . | . . . Scanalyzers . | . . . Garrison Access . | . . . Total Hacks 5 | . 5 . Successful 3 | . 3 . Failed 2 | . 2 . Catastrophic . | . . . Database Lockouts . | . . . Manual . | . . . Terminals 5 | . 5 . Fabricators . | . . . Repair Stations . | . . . Recycling Units . | . . . Scanalyzers . | . . . Garrison Access . | . . . Terminal Hacks 3 | . 3 . Investigation Status 1 | . 1 . Hauler Manifests 1 | . 1 . Registered Components 1 | . 1 . Fabricator Hacks . | . . . Repair Station Hacks . | . . . Recycling Unit Hacks . | . . . Scanalyzer . | . . . Garrison Access Hacks . | . . . Unauthorized Hacks . | . . . Terminals . | . . . Fabricators . | . . . Repair Stations . | . . . Recycling Units . | . . . Scanalyzers . | . . . Garrison Access . | . . . Data Cores Recovered . | . . . Used . | . . . Hacking Detections 2 | . 2 . Full Trace Events . | . . . Feedback Events . | . . . Feedback Blocked . | . . . Robot Schematics Acquired . | . . . Robots Built . | . . . Authchips . | . . . Time . | . . . Total Robot Build Rating . | . . . Part Schematics Acquired . | . . . Parts Built . | . . . Authchips . | . . . Time . | . . . Total Part Build Rating . | . . . Parts Repaired . | . . . Time . | . . . Parts Recycled . | . . . Recycled Matter . | . . . Retrieved Matter . | . . . Retrieved Components . | . . . Parts Scanalyzed . | . . . Part Schematics Acquired . | . . . Parts Damaged . | . . . Bothacking | -11 -10 -9 ------------ Run | Yrd Mat Mat Used RIF Installer . | . . . Robots Hacked . | . . . Non-combat . | . . . Combat . | . . . Robot Hacks Applied . | . . . Relay Couplers Released . | . . . Fabnet Peak Effective % . | . . . Robots Rewired . | . . . Allies Hacked . | . . . Hacks Repelled . | . . . Allies | -11 -10 -9 -------- Run | Yrd Mat Mat Total Allies . | . . . Largest Group . | . . . Highest-Rated Group . | . . . Highest-Rated Ally . | . . . Total Orders . | . . . Ally Attacks . | . . . Total Damage . | . . . Kills . | . . . Allies Corrupted . | . . . Allies Melted . | . . . Intel | -11 -10 -9 ------- Run | Yrd Mat Mat Active Infowar (turns) . | . . . Robot Analysis Total . | . . . Derelict Logs Recovered . | . . . Drone Launches . | . . . Drone Recoveries . | . . . Exploration | -11 -10 -9 ------------- Run | Yrd Mat Mat Turns Passed 1644 | 101 287 1256 Spaces Moved 803 | 72 158 573 Core 151 | 7 . 144 Treads 264 | 9 . 255 Legs 201 | 56 145 . Wheels . | . . . Hover 187 | . 13 174 Flight . | . . . Fastest Speed 50 | 50 56 52 Average Speed 141 | 118 114 152 Slowest Speed 250 | 160 120 250 Overloaded Moves . | . . . Propulsion Burnouts . | . . . Robots Hopped . | . . . Potential Cave-ins . | . . . Cave-ins Triggered . | . . . Exploration Rate (%) 24 | 4 32 38 Regions Visited 2 Branch Regions . Pre-discovered Areas . | . . . Known Exits Taken . | . . . Unknown Exits Taken 2 | 1 1 . Scrap Searched . | . . . Spaces Dug . | . . . Terrain Destroyed 15 | . . 15 Melee . | . . . Projectile . | . . . AOE 15 | . . 15 Terrain Rammed . | . . . Walls Destroyed . | . . . Machines Disabled . | . . . Actions | -11 -10 -9 --------- Run | Yrd Mat Mat Total 1057 | 83 200 774 Wait 14 | . . 14 Move 802 | 72 157 573 Hop . | . . . Pick Up 20 | 2 6 12 Fast Attach 14 | 6 1 7 Attach 8 | . . 8 Detach 3 | . . 3 Swap 10 | 2 2 6 Drop 9 | . 2 7 Fire 156 | . 31 125 Melee 18 | . . 18 Ram . | . . . Kick 2 | 1 1 . Crush 1 | . . 1 Escape Stasis . | . . . Rewire . | . . . Trap . | . . . Miscellaneous . | . . . Route ------- -11/Scrapyard -10/Materials (discovered 2 exits: [*Mat] / [*Min]) -9/Materials History --------- Turn | Location | Event 4 | -11/Scrapyard | Discovered new exit (range 16) 102 | -11/Scrapyard | Entered Materials 102 | -10/Materials | Discovered new exit (range 7) 310 | -10/Materials | Build established: Mutant 383 | -10/Materials | Discovered new exit (range 11) 389 | -10/Materials | Entered another Materials area 389 | -9/Materials | Evolved 2 slots: Propulsion x1, Utility x1 469 | -9/Materials | Lost 4 parts (1p2n1w) 778 | -9/Materials | Core integrity fell below 50% 1254 | -9/Materials | Core integrity fell below 20% 1557 | -9/Materials | Build established: Scavenger-Mutant 1645 | -9/Materials | Destroyed by Y-45 Defender with Heavy Assault Rifle Last Messages --------------- 01607_ K-01 Serf collects debris. 01611_ Triggered Alarm Trap. 01611_ An alarm sounds. 01611_ ALERT: Alarm triggered, dispatching investigation squad. 01611_ K-01 Serf cleans the Recycling Unit. 01612_ U-05 Engineer lays Concrete. 01620_ G-34 Mercenary destroyed. 01620_ K-01 Serf collects debris. 01623_ Acquired 28 matter. 01623_ K-01 Serf collects debris. 01624_ System corrupted: Heat flow error (+198). 01624_ K-01 Serf collects debris. 01635_ W-16 Scout sends out distress signal. 01637_ C-30 ARC bursts open, deploying its payload. 01637_ S-10 Pest unfolds itself. 01642_ G-34 Mercenary destroyed. 01642_ K-01 Serf collects debris. 01643_ Lgt. Ion Engine destroyed. 01644_ Critical hit (Destroy). 01644_ Lgt. Treads destroyed. Map ----- +----------------------------------------------------+ | | | ?????????????????????????????????????????????????? | | ?????????????????????????????????????????????????? | | ?????????????????????????????????????????????????? | | ?????????????????????????????????????????????????? | | ?????????????????????????????????????????????????? | | ?????????????????????????????????????????????????? | | ?????????????????????????????????????????????????? | | ?????????????????????????????????????????????????? | | ?????????????????????????????????????????????????? | | ?????????????????????????????????????????????????? | | ?????????????????????????????????????????????????? | | ?????????????????????????????????????????????????? | | ?????????????????+ ????????????????????????????? | | ?????????????????# ????????????????????????????? | | ?????????????????# ????????????????????????????? | | ?????????????????# #???????????????????????????? | | ?????????????????# ^#???#########???????????????? | | ?????????????????# #???# % ????????????????? | | ?????????????????# #???# ?????????????????? | | ?????????????????# #???# ??????????????????? | | ?????????????????# #???# #???????????????????? | | ???????????####### #???# #???????????????????? | | ??????????? ## #???#s #???????????????????? | | ?????????""" ## o #####ss #???????????????????? | | ??????# """"" ## kY@ #???????????????????? | | ??????# """"" ## k #???????????????????? | | ??????# """"" ## #???????????????????? | | ??????# """ ## """ #???????????????????? | | ??????# ## k """ #???????????????????? | | ??????# ##u "" """ #???????????????????? | | #############+### "Y r#????????????????#### | | = "" ?????????????? | | % ?????????????? | | ?????????????? | | ######+####% ##"T"#####??????????????# | | ???? ?# ###### #?"""########???????????# | | ??" """ # #????# #?#### #???????????# | | """ """ #%#????# #????# #???????????# | | """ """ # #????# #????# #???????????# | | # #????# #????# #???????????# | | # #????# #????# #??????????## | | ###########+###### #?????? ????######## | | ???????# %* # #########+####### %% " | | ???????# """ """ # T = % "T= | | ???????# """ """ # ########### ! | | ???????# """ """ + [[[ #??????######+#### ! | | ???????# # [[[ #??????# [ ## | | ???????# # [[ % %#??????# ## | | ???????# # ######## ## $% | +----------------------------------------------------+ Best States ------------- Heat Dissipation 28 Energy Generation 10 Energy Capacity 125 Matter Stores 300 Matter Capacity 300 Sight Range 16 Terrain Scan Density 10 Armor Coverage 150 Evasion (%) 55 Targeting Accuracy 5 Recoil Reduction 2 Offensive Hacking 10 Item Schematics ----------------- None Robot Schematics ------------------ None Fabricated ------------ Nothing Repaired ---------- Nothing Alien Tech Used ----------------- None Achievements -------------- None Challenges ------------ None Game ------ Seed AluminumNeutronSuit Manual? 0 Play Time 00:18:09 Cumulative 13.6 hours Start 2025.09.27 @ 21:18:56 End 2025.09.27 @ 21:35:37 Sessions 1 Manual Loads 0 Difficulty Rogue Special Mode None Game No. 24 Rogue 24 Adventurer 0 Explorer 0 Win Type - Total 0 Types 0/0/0/0/0/0/0/0/0/0 Lore% 7 Gallery% 17 Achievement% 15 Wizard Run 0 Options --------- Layout 0 ASCII 0 Keyboard 1 Movement Arrows Keybinds 0 Fullscreen 1 Font 24/Smallcaps Map View 76x50 Zoom Use 0% Tactical HUD 1 Map Filters NONE Filters NONE Steam 1 RUN: 9353b66d-116a-4032-bb7b-fbfcc6f89cad